bitfinex/quotes_SOLUSD_20250204
["timestamp","ask_amount","ask_price","bid_price","bid_amount"]
[1738652764548,43.70051844,206.7,206.61,47.76051844]
[1738652764755,43.70051844,206.68,206.61,4.06]
[1738652765168,4.8386,206.67,206.61,4.06]
[1738652765369,4.838,206.7,206.65,43.70051844]
[1738652765560,43.70051844,206.7,206.61,47.76051844]
[1738652765871,43.70051844,206.64,206.55,43.70051844]
[1738652766057,4.8376,206.72,206.57,0.25098]
[1738652766255,4.8376,206.72,206.57,0.97679471]
[1738652766564,44.70051844,206.69,206.61,43.70051844]
[1738652766869,48.53781844,206.73,206.65,43.70051844]
[1738652767087,20.0,206.7,206.65,43.70051844]
[1738652767379,43.70051844,206.73,206.65,48.53951844]
[1738652767553,43.70051844,206.73,206.65,43.70051844]
[1738652767869,43.70051844,206.75,206.67,43.70051844]
[1738652768075,48.53721844,206.75,206.67,43.70051844]
[1738652768259,43.70051844,206.75,206.67,43.70051844]
[1738652768750,48.53731844,206.75,206.67,43.70051844]
[1738652769154,50.01941844,206.79,206.69,43.70051844]
[1738652769355,50.01941844,206.79,206.71,43.70051844]
[1738652769654,69.44769944,206.85,206.77,43.70051844]
[1738652769962,43.70051844,206.81,206.71,154.20051844]
[1738652770169,43.70051844,206.81,206.71,43.70051844]
[1738652770354,43.70051844,206.81,206.73,43.70051844]
[1738652770553,43.70051844,206.83,206.75,43.70051844]
[1738652770754,43.70051844,206.81,206.71,43.70051844]
[1738652770984,43.70051844,206.77,206.69,43.70051844]
[1738652771222,43.70051844,206.77,206.7,13.41184853]
[1738652771398,43.70051844,206.81,206.73,43.70051844]
[1738652771784,43.70051844,206.79,206.71,43.70051844]
[1738652772584,43.70051844,206.79,206.72,13.41184853]
[1738652772794,43.70051844,206.81,206.72,13.41184853]
[1738652773099,43.70051844,206.81,206.73,43.70051844]
[1738652773297,43.70051844,206.81,206.71,43.70051844]
[1738652773298,43.70051844,206.79,206.71,43.70051844]
[1738652774285,43.70051844,206.79,206.72,4.8374]
[1738652774485,48.53541844,206.83,206.73,43.70051844]
[1738652774687,6.3936,206.85,206.72,4.8374]
[1738652774688,48.53511844,206.85,206.77,43.70051844]
[1738652775080,43.70051844,206.85,206.77,43.70051844]
[1738652775287,43.70051844,206.87,206.79,43.70051844]
[1738652775581,43.70051844,206.87,206.76,4.06]
[1738652775582,43.70051844,206.85,206.77,43.70051844]
[1738652776593,43.70051844,206.85,206.76,4.06]
[1738652776594,43.70051844,206.83,206.76,4.06]
[1738652776894,43.70051844,206.81,206.76,4.06]
[1738652777108,16.9195,206.86,206.7,110.5]
[1738652777109,43.70051844,206.79,206.71,43.70051844]
[1738652777403,43.70051844,206.79,206.69,43.70051844]
[1738652777603,43.70051844,206.79,206.71,43.70051844]
[1738652777905,43.70051844,206.81,206.73,43.70051844]
[1738652778283,43.70051844,206.79,206.71,43.70051844]
[1738652778497,4.836,206.78,206.71,43.70051844]
[1738652778699,4.836,206.78,206.7,31.76406077]
[1738652778895,26.92616077,206.81,206.72,26.92616077]
[1738652779420,26.92616077,206.77,206.7,31.76406077]
[1738652779592,26.92616077,206.77,206.7,26.92616077]
[1738652780597,26.92616077,206.79,206.7,31.76386077]
[1738652780901,26.92616077,206.79,206.72,26.92616077]
[1738652781102,26.92616077,206.81,206.72,26.92616077]
[1738652781305,26.92616077,206.81,206.74,26.92616077]
[1738652781714,26.92616077,206.81,206.72,26.92616077]
[1738652782016,26.92616077,206.83,206.74,26.92616077]
[1738652782229,0.03,206.88,206.8,26.92616077]
[1738652782392,0.03,206.88,206.84,26.92616077]
[1738652782712,0.03,206.88,206.82,26.92616077]
[1738652783089,0.03,206.88,206.84,26.92616077]
[1738652783616,0.03,206.88,206.86,26.92616077]
[1738652783813,0.03,206.88,206.87,13.66282853]
[1738652784003,0.03,206.88,206.87,124.88763832]
[1738652784197,0.03,206.88,206.87,124.16282853]
[1738652784739,0.03,206.88,206.87,128.99672853]
[1738652785304,0.03,206.88,206.87,110.5]
[1738652785611,0.03,206.88,206.87,124.16282853]
[1738652787530,0.063,206.93,206.9,20.0]
[1738652787826,0.063,206.93,206.92,40.5889893]
[1738652788028,6.4563,207.09,206.96,20.25098]
[1738652788208,6.4563,207.09,207.04,26.92616077]
[1738652788209,0.03,207.09,207.04,26.92616077]
[1738652789242,0.03,207.09,207.02,26.92616077]
[1738652789731,26.92616077,207.08,207.0,26.92616077]
[1738652790804,4.8292,207.07,207.0,26.92616077]
[1738652791199,4.8292,207.07,207.02,26.92616077]
[1738652791629,4.8292,207.07,207.0,26.92616077]
[1738652791849,26.92616077,207.01,206.91,30.98616077]
[1738652792050,26.92616077,206.95,206.87,26.92616077]
[1738652792709,31.75826077,206.95,206.87,31.76006077]
[1738652792919,26.92616077,206.97,206.89,26.92616077]
[1738652793220,26.92616077,206.95,206.87,26.92616077]
[1738652793543,26.92616077,206.88,206.8,26.92616077]
[1738652793720,26.92616077,206.88,206.78,30.98616077]
[1738652793914,26.92616077,206.86,206.78,30.98616077]
[1738652794419,26.92616077,206.88,206.8,26.92616077]
[1738652794751,4.8334,206.89,206.81,43.70831905]
[1738652795251,43.70831905,206.84,206.78,4.06]
[1738652796621,43.70831905,206.84,206.75,43.70831905]
[1738652797713,48.54301905,206.84,206.75,43.70831905]
[1738652798113,43.70831905,206.82,206.73,43.70831905]
[1738652799231,4.8353,206.81,206.73,43.70831905]
[1738652799726,4.835,206.83,206.75,43.70831905]
[1738652799929,48.54301905,206.84,206.75,43.70831905]
[1738652800118,43.70831905,206.82,206.75,43.70831905]
[1738652800311,43.70831905,206.8,206.71,43.70831905]
[1738652800513,43.70831905,206.8,206.75,0.063]
[1738652801330,11.4511,206.88,206.79,43.70831905]
[1738652801519,11.4511,206.88,206.81,43.70831905]
[1738652801840,55.15941905,206.88,206.79,43.70831905]
[1738652802043,50.32571905,206.88,206.81,43.70831905]
[1738652802213,0.03,206.88,206.81,43.70831905]
[1738652802838,0.03,206.88,206.84,43.70831905]
[1738652803230,0.03,206.88,206.86,43.70831905]
[1738652803539,0.03,206.88,206.84,43.70831905]
[1738652803734,0.03,206.88,206.81,128.74694853]
[1738652803937,0.03,206.88,206.8,4.06]
[1738652803938,43.70831905,206.86,206.8,4.06]
[1738652805223,43.73831905,206.88,206.8,4.06]
[1738652805429,43.70831905,206.86,206.8,4.06]
[1738652805816,4.8339,206.87,206.8,4.06]
[1738652806937,43.70831905,206.86,206.8,4.06]
[1738652807341,4.8344,206.85,206.78,43.70831905]
[1738652807519,43.70831905,206.84,206.76,43.70831905]
[1738652807916,43.70831905,206.82,206.75,0.063]
[1738652808234,43.70831905,206.78,206.75,0.063]
[1738652809523,20.0,206.76,206.75,0.063]
[1738652809722,63.70831905,206.76,206.75,0.063]
[1738652810247,63.70831905,206.76,206.63,43.70831905]
[1738652810540,43.70831905,206.68,206.61,43.70831905]
[1738652810729,43.70831905,206.66,206.59,4.8402]
[1738652811236,43.70831905,206.68,206.61,43.70831905]
[1738652811441,43.70831905,206.7,206.63,43.70831905]
[1738652812337,43.70831905,206.7,206.61,43.70831905]
[1738652812634,43.70831905,206.68,206.59,43.70831905]
[1738652812811,43.70831905,206.7,206.61,43.70831905]
[1738652813718,4.8381,206.69,206.61,43.70831905]
[1738652813921,43.70831905,206.72,206.63,43.70831905]
[1738652814360,43.70831905,206.76,206.67,43.70831905]
[1738652814520,43.70831905,206.78,206.69,43.70831905]
[1738652814823,43.70831905,206.71,206.59,43.70831905]
[1738652815027,43.70831905,206.67,206.59,43.70831905]
[1738652815638,4.8388,206.66,206.59,43.70831905]
[1738652816067,43.70831905,206.61,206.56,0.063]
[1738652816253,43.70831905,206.59,206.56,0.063]
[1738652816587,43.70831905,206.61,206.56,0.063]
[1738652816792,26.97356136,206.61,206.56,0.063]
[1738652817073,6.3487,206.65,206.56,0.063]
[1738652817074,26.97356136,206.63,206.56,0.063]
[1738652817483,33.32226136,206.65,206.56,27.03656136]
[1738652817664,31.81266136,206.65,206.56,31.87756136]
[1738652818263,26.97356136,206.67,206.58,26.97356136]
[1738652818589,31.81176136,206.69,206.6,26.97356136]
[1738652818752,48.63358977,206.69,206.61,43.79538977]
[1738652818953,43.79538977,206.73,206.65,43.79538977]
[1738652819149,48.63258977,206.73,206.65,43.79538977]
[1738652820149,43.79538977,206.69,206.61,43.79538977]
[1738652820375,43.79538977,206.69,206.6,110.5]
[1738652820676,43.79538977,206.71,206.61,43.79538977]
[1738652820872,43.79538977,206.71,206.63,43.79538977]
[1738652821063,48.63258977,206.73,206.65,43.79538977]
[1738652821465,43.79538977,206.73,206.65,43.79538977]
[1738652822278,48.63258977,206.73,206.65,48.63438977]
[1738652822588,43.79538977,206.73,206.66,13.41184853]
[1738652822785,43.79538977,206.71,206.65,110.5]
[1738652823093,43.79538977,206.67,206.59,154.29538977]
[1738652823297,43.79538977,206.67,206.57,52.69628977]
[1738652823468,43.79538977,206.63,206.56,0.063]
[1738652823859,43.79538977,206.61,206.56,0.063]
[1738652824062,43.79538977,206.59,206.56,0.063]
[1738652824266,63.79538977,206.61,206.56,0.063]
[1738652825570,4.8402,206.6,206.56,0.063]
[1738652825767,43.79538977,206.59,206.56,0.063]
[1738652826147,63.79538977,206.57,206.56,0.063]
[1738652826595,43.79538977,206.59,206.56,0.063]
[1738652826771,4.8399,206.62,206.56,0.063]
[1738652827664,4.8394,206.64,206.57,43.79538977]
[1738652828062,48.63438977,206.66,206.57,43.79538977]
[1738652828679,43.64853638,206.64,206.56,0.063]
[1738652828892,43.79538977,206.6,206.56,0.063]
[1738652829261,43.79538977,206.58,206.56,0.063]
[1738652829573,4.8409,206.57,206.56,0.063]
[1738652829973,4.8407,206.59,206.56,0.063]
[1738652830193,48.63518977,206.62,206.56,0.063]
[1738652830350,4.8398,206.62,206.56,0.063]
[1738652830556,43.79538977,206.6,206.56,0.063]
[1738652831372,4.8405,206.59,206.56,0.063]
[1738652832778,44.79538977,206.58,206.56,0.063]
[1738652832984,20.61774853,206.57,206.56,0.0001]
[1738652833181,1.0,206.55,206.54,0.0001]
[1738652833359,20.0,206.52,206.5,0.03]
[1738652833690,103.00262807,206.51,206.5,0.0001]
[1738652834366,102.00262807,206.51,206.5,0.0001]
[1738652834702,102.00262807,206.51,206.44,0.063]
[1738652834703,20.0,206.48,206.44,0.063]
[1738652834983,20.0,206.48,206.44,0.0001]
[1738652834984,43.79538977,206.45,206.44,0.0001]
[1738652835500,43.79538977,206.49,206.44,0.0001]
[1738652835660,43.79538977,206.47,206.44,0.0001]
[1738652836183,43.79538977,206.45,206.44,0.0001]
[1738652836683,43.79538977,206.49,206.44,0.0001]
[1738652836983,4.8426,206.5,206.44,0.0001]
[1738652837187,43.79538977,206.51,206.44,0.0001]
[1738652837572,43.79538977,206.53,206.45,43.79538977]
[1738652838068,43.79538977,206.53,206.44,13.41194853]
[1738652838493,4.8421,206.52,206.44,13.41194853]
[1738652839074,43.79538977,206.53,206.45,43.79538977]
[1738652839290,48.63688977,206.55,206.47,43.79538977]
[1738652839478,4.8415,206.55,206.47,43.79538977]
[1738652839891,48.63638977,206.57,206.47,43.79538977]
[1738652840390,43.79538977,206.55,206.47,43.79538977]
[1738652840595,43.79538977,206.53,206.45,6.3728]
[1738652840778,43.79538977,206.51,206.44,110.5001]
[1738652841275,43.79538977,206.51,206.44,0.0001]
[1738652841910,43.79538977,206.49,206.44,0.0001]
[1738652842594,16.9457,206.54,206.44,0.0001]
[1738652842595,43.79538977,206.47,206.44,0.0001]
[1738652842804,43.79538977,206.6,206.44,0.0001]
[1738652842805,63.79538977,206.45,206.44,0.0001]
[1738652843491,77.2072383,206.45,206.44,0.0001]
[1738652844081,78.2072383,206.45,206.44,0.0001]
[1738652845392,83.0509383,206.45,206.44,0.0001]
[1738652845575,21.0,206.41,206.38,0.0001]
[1738652845887,43.79538977,206.39,206.38,0.0001]
[1738652846092,57.2072383,206.39,206.38,0.0001]
[1738652847305,62.0523383,206.39,206.38,0.0001]
[1738652848285,20.0,206.36,206.3,0.03]
[1738652848620,63.79538977,206.36,206.3,0.03]
[1738652848774,20.0,206.36,206.3,0.03]
[1738652849398,43.79538977,206.31,206.3,0.03]
[1738652850810,20.0,206.28,206.23,0.03]
[1738652851114,43.79538977,206.24,206.23,0.03]
[1738652851480,48.64408977,206.24,206.23,0.03]
[1738652852586,48.76957977,206.24,206.23,0.03]
[1738652853206,48.64408977,206.24,206.23,0.03]
[1738652854688,43.79538977,206.24,206.23,0.03]
[1738652854885,48.64408977,206.24,206.23,0.03]
[1738652856010,43.79538977,206.24,206.23,0.03]
[1738652856183,43.79538977,206.26,206.23,0.03]
[1738652856499,43.79538977,206.28,206.23,0.03]
[1738652856706,4.848,206.27,206.23,0.03]
[1738652857385,20.0,206.25,206.23,0.03]
[1738652857884,43.79538977,206.3,206.23,0.03]
[1738652858530,43.79538977,206.32,206.23,43.82538977]
[1738652858693,48.64178977,206.34,206.25,48.64358977]
[1738652858892,0.03,206.31,206.25,48.64358977]
[1738652859309,20.03,206.31,206.23,48.67408977]
[1738652859608,43.79538977,206.28,206.23,0.03]
[1738652859989,43.79538977,206.3,206.23,4.8789]
[1738652860193,43.79538977,206.3,206.23,48.67428977]
[1738652860687,43.79538977,206.3,206.23,0.03]
[1738652860889,48.64268977,206.3,206.23,0.03]
[1738652861099,0.03,206.31,206.23,43.82538977]
[1738652862222,0.03,206.31,206.27,43.79538977]
[1738652863226,0.03,206.31,206.25,43.79538977]
[1738652863524,0.03,206.31,206.24,6.0494]
[1738652863728,43.79538977,206.3,206.23,0.03]
[1738652865828,0.03,206.31,206.27,43.79538977]
[1738652866018,0.03,206.31,206.29,43.79538977]
[1738652866342,0.03,206.31,206.3,13.41184853]
[1738652866645,0.03,206.31,206.3,40.43821006]
[1738652867432,0.03,206.31,206.28,27.02636153]
[1738652867640,0.03,206.31,206.24,27.02636153]
[1738652867817,27.02636153,206.3,206.23,4.8789]
[1738652869036,31.87376153,206.3,206.23,0.03]
[1738652869332,27.02636153,206.3,206.23,0.03]
[1738652870125,0.03,206.31,206.24,27.02636153]
[1738652870323,0.03,206.3,206.24,27.02636153]
[1738652870717,0.03,206.3,206.23,0.03]
[1738652870718,0.03,206.3,206.26,27.02636153]
[1738652871143,0.03,206.3,206.27,4.848]
[1738652871934,0.03,206.3,206.28,27.02636153]
[1738652872725,0.03,206.3,206.29,13.41184853]
[1738652873251,0.03,206.3,206.29,18.25934853]
[1738652873543,0.03,206.3,206.29,4.8475]
[1738652876039,0.03,206.3,206.27,4.8478]
[1738652876557,27.05636153,206.3,206.22,31.08636153]
[1738652876744,27.05636153,206.3,206.21,8.9093]
[1738652877058,27.05636153,206.3,206.22,31.87546153]
[1738652877851,27.05636153,206.3,206.23,4.8789]
[1738652878062,31.90376153,206.3,206.23,0.03]
[1738652878228,27.02636153,206.28,206.23,0.03]
[1738652880734,27.02636153,206.24,206.23,0.03]
[1738652880938,40.43821006,206.24,206.23,0.03]
[1738652881148,40.43821006,206.24,206.23,0.0001]
[1738652882324,20.0,206.21,206.11,0.03]
[1738652882530,27.02636153,206.14,206.11,0.03]
[1738652884057,27.02636153,206.15,206.11,0.03]
[1738652884537,27.02636153,206.17,206.11,0.03]
[1738652885276,27.02636153,206.23,206.14,27.02636153]
[1738652885571,27.02636153,206.27,206.18,27.02636153]
[1738652885774,27.02636153,206.27,206.18,110.5]
[1738652886058,0.03,206.3,206.24,27.02636153]
[1738652886256,0.03,206.3,206.24,110.5]
[1738652886461,0.03,206.3,206.26,27.02636153]
[1738652887149,27.05636153,206.3,206.24,142.37496153]
[1738652887662,0.03,206.3,206.26,27.02636153]
[1738652887840,0.03,206.3,206.28,27.02636153]
[1738652889566,0.03,206.3,206.28,31.87396153]
[1738652891253,0.03,206.3,206.28,142.37396153]
[1738652891443,0.03,206.3,206.29,13.41184853]
[1738652891650,0.03,206.3,206.29,110.5]
[1738652893236,0.03,206.3,206.29,115.3475]
[1738652893445,0.03,206.3,206.29,110.5]
[1738652896547,0.03,206.3,206.24,27.02636153]
[1738652897164,0.03,206.3,206.24,31.87496153]
[1738652897344,0.03,206.3,206.26,27.02636153]
[1738652897958,0.03,206.3,206.23,110.563]
[1738652898143,0.03,206.3,206.23,142.43816153]
[1738652898345,0.03,206.3,206.23,137.58936153]
[1738652898637,27.02636153,206.27,206.23,0.063]
[1738652898971,27.02636153,206.25,206.23,0.063]
[1738652900338,31.87476153,206.25,206.23,0.063]
[1738652900544,13.41184853,206.24,206.23,0.063]
[1738652900843,13.41184853,206.24,206.23,0.0001]
[1738652902272,41.43821006,206.24,206.23,0.0001]
[1738652902672,20.0,206.17,206.11,0.03]
[1738652902846,27.02636153,206.15,206.11,0.03]
[1738652903249,27.02636153,206.17,206.11,0.03]
[1738652904358,4.8506,206.16,206.11,0.03]
[1738652904771,27.02636153,206.15,206.11,0.03]
[1738652905975,31.87726153,206.15,206.11,0.03]
[1738652906161,27.02636153,206.15,206.11,0.03]
[1738652906770,20.0,206.16,206.11,27.05636153]
[1738652906981,20.0,206.16,206.11,0.03]
[1738652907572,27.02636153,206.19,206.11,27.05636153]
[1738652907775,27.02636153,206.17,206.11,0.03]
[1738652907975,27.02636153,206.15,206.11,0.03]
[1738652910379,27.02636153,206.19,206.11,27.05636153]
[1738652910551,4.8491,206.22,206.15,27.02636153]
[1738652910864,31.87476153,206.25,206.17,27.02636153]
[1738652911071,27.02636153,206.27,206.19,27.02636153]
[1738652911464,27.02636153,206.25,206.17,137.52636153]
[1738652912376,31.87496153,206.25,206.17,137.52636153]
[1738652912677,27.02636153,206.23,206.17,110.5]
[1738652912882,27.02636153,206.27,206.19,27.02636153]
[1738652913581,20.0,206.24,206.19,27.02636153]
[1738652913781,20.0,206.24,206.17,115.3502]
[1738652913782,20.0,206.24,206.17,142.37656153]
[1738652913978,27.02636153,206.23,206.17,115.3502]
[1738652914175,27.02636153,206.23,206.17,110.5]
[1738652914373,27.02636153,206.27,206.19,27.02636153]
[1738652914771,27.02636153,206.25,206.19,27.02636153]
[1738652915775,31.87496153,206.25,206.17,142.37666153]
[1738652916383,31.87496153,206.25,206.17,137.52636153]
[1738652916788,31.87496153,206.25,206.17,110.5]
[1738652916974,27.02636153,206.21,206.17,110.5]
[1738652917175,27.02636153,206.19,206.13,110.5]
[1738652917964,4.8501,206.18,206.13,110.5]
[1738652918165,31.87626153,206.19,206.13,110.5]
[1738652918380,27.02636153,206.15,206.11,0.03]
[1738652918584,27.02636153,206.13,206.11,0.03]
[1738652918967,40.43821006,206.12,206.11,0.03]
[1738652919172,40.43821006,206.12,206.11,0.0001]
[1738652919490,33.41184853,206.1,206.09,0.0001]
[1738652919685,87.46457159,206.1,206.09,0.0001]
[1738652919869,87.46457159,206.1,206.02,0.03]
[1738652919870,13.41184853,206.09,206.02,0.03]
[1738652920190,27.02636153,206.03,206.02,0.03]
[1738652921265,40.43821006,206.03,206.02,0.03]
[1738652921970,14.41184853,206.02,206.0,0.0001]
[1738652922169,20.0,205.98,205.9,0.03]
[1738652922487,27.02636153,205.92,205.9,0.03]
[1738652922696,27.02636153,205.93,205.9,0.03]
[1738652923699,27.02636153,205.96,205.9,0.03]
[1738652924196,18.02779288,205.92,205.88,10.20722202]
[1738652924490,29.95857927,205.93,205.91,13.41184853]
[1738652924680,29.95857927,205.93,205.92,40.56370006]
[1738652924876,29.95857927,205.93,205.92,40.68919006]
[1738652925285,38.52316387,206.05,205.94,13.41184853]
[1738652925286,7.52269177,205.98,205.94,13.41184853]
[1738652925484,7.52269177,205.98,205.97,27.02636153]
[1738652926297,7.52269177,205.98,205.97,40.43821006]
[1738652926593,7.52269177,205.98,205.97,27.02636153]
[1738652927076,7.52269177,205.98,205.94,110.5]
[1738652927281,14.53733853,206.08,205.94,110.5]
[1738652927282,27.02636153,205.99,205.94,110.5]
[1738652927592,31.88096153,205.99,205.94,110.5]
[1738652927792,27.02636153,205.97,205.9,13.41184853]
[1738652927983,27.02636153,205.97,205.91,27.02636153]
[1738652928183,31.88096153,205.99,205.91,27.02636153]
[1738652928392,27.02636153,205.99,205.92,13.41184853]
[1738652928581,0.12549,206.05,205.91,27.02636153]
[1738652928582,27.02636153,206.03,205.95,27.02636153]
[1738652929102,7.64818177,206.05,205.97,27.02636153]
[1738652929103,34.5490533,206.05,205.97,27.02636153]
[1738652929402,34.5490533,206.05,205.99,27.02636153]
[1738652929880,34.5490533,206.05,205.97,31.88136153]
[1738652930190,27.02636153,206.0,205.93,27.02636153]
[1738652930394,27.02636153,205.98,205.92,0.063]
[1738652931293,27.02636153,206.0,205.93,27.02636153]
[1738652931590,47.02636153,206.02,205.94,13.41184853]
[1738652931896,51.88026153,206.02,205.93,27.02636153]
[1738652932097,27.02636153,206.0,205.93,27.02636153]
[1738652933101,27.02636153,205.98,205.92,0.063]
[1738652933297,31.88136153,205.98,205.92,0.063]
[1738652933804,27.02636153,205.96,205.92,0.063]
[1738652934503,27.02636153,205.94,205.92,0.063]
[1738652935291,31.88226153,205.94,205.92,0.063]
[1738652936001,27.02636153,205.94,205.92,0.063]
[1738652936302,4.8555,205.95,205.92,0.063]
[1738652936605,31.88116153,205.98,205.92,0.063]
[1738652936806,12.1351,206.02,205.93,27.02636153]
[1738652936807,31.88066153,206.0,205.93,27.02636153]
[1738652937305,20.0,205.97,205.92,0.063]
[1738652937604,27.02636153,205.96,205.92,0.063]
[1738652937795,24.855,205.97,205.92,0.063]
[1738652937796,20.0,205.97,205.92,0.063]
[1738652938001,27.02636153,205.98,205.92,0.063]
[1738652938193,31.88126153,205.98,205.92,0.063]
[1738652938588,27.02636153,205.96,205.92,0.063]
[1738652940383,27.02636153,205.98,205.92,0.063]
[1738652940587,27.02636153,206.0,205.92,27.08936153]
[1738652941579,27.02636153,205.94,205.92,0.063]
[1738652943013,31.88226153,205.94,205.92,0.063]
[1738652943406,0.12549,205.93,205.92,0.0001]
[1738652944517,4.98149,205.93,205.92,0.0001]
[1738652945412,27.02636153,205.88,205.81,18.27064853]
[1738652945709,27.02636153,205.88,205.81,128.77064853]
[1738652946604,27.02636153,205.92,205.85,13.41184853]
[1738652946813,27.05636153,205.96,205.88,27.02636153]
[1738652947011,27.05636153,205.96,205.88,137.52636153]
[1738652948011,31.91176153,205.96,205.88,137.52636153]
[1738652948511,27.02636153,205.92,205.88,110.5]
[1738652948706,27.02636153,205.9,205.88,110.5]
[1738652949013,27.02636153,205.9,205.82,137.52636153]
[1738652949199,27.02636153,205.9,205.82,27.02636153]
[1738652949787,20.0,205.89,205.82,31.88496153]
[1738652949987,31.88276153,205.92,205.84,31.88436153]
[1738652950183,20.0,205.91,205.84,31.88436153]
[1738652950729,7.52269177,205.94,205.9,27.02636153]
[1738652951169,7.52269177,205.94,205.92,27.02636153]
[1738652951551,7.52269177,205.94,205.93,13.41184853]
[1738652952061,7.52269177,205.94,205.92,137.52636153]
[1738652952265,7.52269177,205.94,205.92,110.5]
[1738652952637,4.8555,205.95,205.92,110.5]
[1738652953025,0.03,205.96,205.92,110.5]
[1738652953342,0.03,205.96,205.94,27.02636153]
[1738652953544,0.03,205.96,205.95,13.53733853]
[1738652953756,0.03,205.96,205.95,124.03733853]
[1738652954266,0.03,205.96,205.95,95.19861754]
[1738652955662,0.03,205.96,205.95,80.72028379]
[1738652955871,27.02636153,206.1,205.98,0.12549]
[1738652956089,27.02636153,206.1,206.02,27.02636153]
[1738652956255,20.0,206.07,206.02,27.02636153]
[1738652956456,20.0,206.07,206.0,27.02636153]
[1738652956650,27.02636153,206.08,206.0,27.02636153]
[1738652956893,27.02636153,206.08,206.0,31.88066153]
[1738652957262,27.02636153,206.08,206.0,27.02636153]
[1738652959386,20.0,206.05,206.0,27.02636153]
[1738652959983,24.8533,206.05,205.98,72.44311754]
[1738652960356,24.8533,206.05,205.98,99.46947907]
[1738652960549,27.02636153,206.09,206.01,27.02636153]
[1738652960751,31.87766153,206.13,206.05,27.02636153]
[1738652960974,27.02636153,206.15,206.07,27.02636153]
[1738652961178,31.87726153,206.15,206.07,27.02636153]
[1738652961460,20.0,206.1,206.05,27.02636153]
[1738652961653,27.02636153,206.07,206.02,72.44311754]
[1738652961955,27.02636153,206.09,206.01,31.88046153]
[1738652962369,27.02636153,206.13,206.05,27.02636153]
[1738652962571,31.87726153,206.15,206.07,27.02636153]
[1738652963085,27.02636153,206.11,206.05,72.44311754]
[1738652963657,4.852,206.1,206.05,72.44311754]
[1738652964187,31.87766153,206.13,206.05,104.32257907]
[1738652964480,31.87766153,206.13,206.05,99.46947907]
[1738652965461,31.87766153,206.13,206.05,27.02636153]
[1738652965861,31.90766153,206.13,206.05,31.87946153]
[1738652966769,31.90766153,206.13,206.05,27.02636153]
[1738652968068,31.90766153,206.13,206.04,72.44311754]
[1738652969482,27.05636153,206.13,206.05,27.02636153]
[1738652969789,0.03,206.13,206.09,27.02636153]
[1738652970394,0.03,206.13,206.07,27.02636153]
[1738652971099,31.90766153,206.13,206.05,27.02636153]
[1738652971891,31.90766153,206.13,206.05,31.87936153]
[1738652972285,27.02636153,206.11,206.04,72.44311754]
[1738652972805,27.02636153,206.11,206.03,27.02636153]
[1738652973210,20.0,206.08,206.03,27.02636153]
[1738652973511,27.02636153,206.09,206.01,104.32357907]
[1738652973878,31.87876153,206.09,206.01,104.32357907]
[1738652974299,20.0,206.08,206.03,27.02636153]
[1738652974505,20.0,206.08,206.01,99.46947907]
[1738652975114,20.0,206.08,206.01,104.32357907]
[1738652976599,0.03,206.13,206.06,27.02636153]
[1738652976779,0.03,206.13,206.06,99.46947907]
[1738652977585,20.03,206.13,206.06,99.46947907]
[1738652977782,27.02636153,206.12,206.06,72.44311754]
[1738652978082,27.02636153,206.1,206.06,72.44311754]
[1738652979690,4.8522,206.09,206.06,72.44311754]
[1738652980403,4.8522,206.09,206.02,99.46947907]
[1738652982194,4.8522,206.09,205.98,99.46947907]
[1738652982195,27.02636153,206.06,205.98,99.46947907]
[1738652982396,27.02636153,206.04,205.98,72.44311754]
[1738652982705,27.02636153,206.02,205.98,72.44311754]
[1738652984393,27.02636153,206.0,205.96,0.063]
[1738652984699,27.02636153,206.06,205.98,27.02636153]
[1738652985081,20.0,206.03,205.98,27.02636153]
[1738652985575,27.02636153,206.04,205.98,27.02636153]
[1738652986701,18.7027,206.08,205.98,27.02636153]
[1738652986702,31.87896153,206.08,206.0,27.02636153]
[1738652986904,4.8526,206.08,206.02,27.02636153]
[1738652987805,20.0,206.07,206.02,27.02636153]
[1738652988306,47.02636153,206.08,206.02,27.02636153]
[1738652989083,4.8527,206.07,206.02,27.02636153]
[1738652989803,4.8523,206.09,206.02,27.02636153]